fUST/lending_fUST_20250915
["ID","MTS","AMOUNT","RATE_DAILY","PERIOD"]
[385497680,1757880633899,-480.0,0.00022191,3]
[385497681,1757880633908,-480.0,0.00022191,3]
[385497682,1757880633917,-649.58,0.00022191,3]
[385497683,1757880633927,-480.0,0.00022191,3]
[385497684,1757880633936,-480.0,0.00022191,3]
[385497685,1757880633946,-480.0,0.00022191,3]
[385497686,1757880633956,-2786.22,0.00022191,3]
[385497687,1757880633965,-683.03,0.00022191,3]
[385497688,1757880633975,-498.31,0.00022191,3]
[385497689,1757880633984,-487.6,0.00022191,3]
[385497690,1757880633993,-576.81,0.00022191,3]
[385497691,1757880634003,-778.35,0.00022191,3]
[385497692,1757880634013,-207.88117262,0.00022191,3]
[385497693,1757880634148,-1031.42882738,0.00022191,3]
[385497694,1757880634158,-480.0,0.00022191,3]
[385497695,1757880634168,-2079.8,0.00022191,3]
[385497696,1757880634177,-480.0,0.00022191,3]
[385497697,1757880634187,-535.32,0.00022191,3]
[385497698,1757880634197,-1416.85,0.00022191,3]
[385497699,1757880634207,-646.4,0.00022191,3]
[385497700,1757880634216,-480.0,0.00022191,3]
[385497701,1757880634226,-480.0,0.00022191,3]
[385497702,1757880634236,-593.08,0.00022191,3]
[385497703,1757880634247,-480.0,0.00022191,3]
[385497704,1757880634257,-480.0,0.00022191,3]
[385497705,1757880634267,-964.68,0.00022191,3]
[385497706,1757880634277,-1210.2,0.00022191,3]
[385497707,1757880634292,-584.73,0.00022191,3]
[385497708,1757880634302,-568.28,0.00022191,3]
[385497709,1757880634312,-601.95,0.00022191,3]
[385497710,1757880634323,-519.75,0.00022191,3]
[385497711,1757880634333,-300.0,0.00022191,2]
[385497712,1757880634343,-480.0,0.00022191,3]
[385497713,1757880634354,-480.0,0.00022191,3]
[385497714,1757880634364,-480.0,0.00022191,3]
[385497715,1757880634374,-480.0,0.00022191,3]
[385497716,1757880634383,-11402.65,0.00022191,3]
[385497717,1757880634393,-480.0,0.00022191,3]
[385497718,1757880634402,-539.71,0.00022191,3]
[385497719,1757880634412,-185.27185661,0.00022259,2]
[385497720,1757880634421,-151.2,0.00022319,2]
[385497721,1757880634431,-7245.39499682,0.0002234,2]
[385497722,1757880634440,-976.0,0.00022344,2]
[385497723,1757880634449,-300.0,0.00022354,20]
[385497724,1757880634458,-300.0,0.00022354,20]
[385497725,1757880634468,-300.0,0.00022354,20]
[385497726,1757880634477,-300.0,0.00022354,20]
[385497727,1757880634487,-300.0,0.00022354,20]
[385497728,1757880634496,-300.0,0.00022354,20]
[385497729,1757880634507,-300.0,0.00022354,20]
[385497730,1757880634517,-300.0,0.00022354,20]
[385497731,1757880634526,-300.0,0.00022354,20]
[385497732,1757880634535,-300.0,0.00022354,20]
[385497733,1757880634545,-300.0,0.00022354,20]
[385497734,1757880634554,-300.0,0.00022354,20]
[385497735,1757880634563,-300.0,0.00022354,20]
[385497736,1757880634573,-300.0,0.00022354,20]
[385497737,1757880634582,-300.0,0.00022354,20]
[385497738,1757880634592,-600.0,0.00022354,20]
[385497739,1757880634601,-2156.0,0.00022369,2]
[385497740,1757880634610,-634.0,0.00022369,2]
[385497741,1757880634619,-409.0,0.00022369,2]
[385497742,1757880634628,-410.748,0.00022369,2]
[385497743,1757880634637,-1780.20085867,0.00022398,2]
[385497744,1757880634647,-3000.0,0.000224,2]
[385497745,1757880634656,-3000.0,0.0002241,2]
[385497746,1757880634665,-3000.0,0.0002242,2]
[385497747,1757880634674,-3000.0,0.0002243,2]
[385497748,1757880634683,-118.74065946,0.0002244,2]
[385497945,1757880639818,-500.0,0.00021916,2]
[385497947,1757880639828,-500.0,0.00021916,2]
[385497949,1757880639837,-382.28812025,0.00021916,2]
[385497951,1757880639847,-500.0,0.00021916,2]
[385497953,1757880639856,-500.0,0.00021916,2]
[385497955,1757880639866,-500.0,0.00021916,2]
[385497957,1757880639881,-500.0,0.00021916,2]
[385497959,1757880639890,-480.0,0.00021917,2]
[385497961,1757880639900,-678.7,0.00021917,2]
[385497963,1757880639909,-549.94041091,0.00021917,2]
[385497965,1757880639919,-480.0,0.00022191,3]
[385497967,1757880639928,-678.7,0.00022191,3]
[385497969,1757880639938,-2881.25934054,0.0002244,2]
[385497971,1757880639947,-3000.0,0.0002245,2]
[385497973,1757880639957,-5544.36,0.00022455,10]
[385497975,1757880639967,-3000.0,0.0002246,2]
[385497977,1757880639976,-155.0,0.00022464,2]
[385497979,1757880639986,-480.0,0.00022465,3]
[385497981,1757880639995,-480.0,0.00022465,3]
[385497983,1757880640005,-480.0,0.00022465,3]
[385497985,1757880640014,-480.0,0.00022465,3]
[385497987,1757880640023,-480.0,0.00022465,3]
[385497989,1757880640033,-480.0,0.00022465,3]
[385497991,1757880640042,-480.0,0.00022465,3]
[385497993,1757880640051,-480.0,0.00022465,3]
[385497995,1757880640063,-480.0,0.00022465,3]
[385497997,1757880640071,-480.0,0.00022465,3]
[385497999,1757880640080,-541.14961515,0.00022465,3]
[385498001,1757880640090,-246.66684946,0.00022465,3]
[385498004,1757880640099,-480.0,0.00022465,3]
[385498006,1757880640108,-480.0,0.00022465,3]
[385498008,1757880640118,-480.0,0.00022465,3]
[385498010,1757880640127,-776.79,0.00022465,3]
[385498012,1757880640136,-183.51577949,0.00022465,3]
[385498014,1757880640148,-296.48422051,0.00022465,3]
[385498016,1757880640157,-480.0,0.00022465,3]
[385498018,1757880640166,-480.0,0.00022465,3]
[385498020,1757880640175,-480.0,0.00022465,3]
[385498022,1757880640184,-383.11968004,0.00022465,3]
[385498024,1757880640194,-574.94,0.00022465,3]
[385498026,1757880640203,-480.0,0.00022465,3]
[385498028,1757880640212,-480.0,0.00022465,3]
[385498030,1757880640222,-866.99,0.00022465,3]
[385498032,1757880640231,-480.0,0.00022465,3]
[385498034,1757880640240,-480.0,0.00022465,3]
[385498036,1757880640250,-480.0,0.00022465,3]
[385498038,1757880640259,-480.0,0.00022465,3]
[385498040,1757880640268,-489.06,0.00022465,3]
[385498042,1757880640277,-480.0,0.00022465,3]
[385498044,1757880640289,-480.0,0.00022465,3]
[385498046,1757880640298,-480.0,0.00022465,3]
[385498048,1757880640307,-488.18,0.00022465,3]
[385498050,1757880640316,-693.55,0.00022465,3]
[385498052,1757880640326,-957.76,0.00022465,3]
[385498054,1757880640336,-480.0,0.00022465,3]
[385498056,1757880640345,-480.0,0.00022465,3]
[385498058,1757880640355,-125.8722458,0.00022465,3]
[385498333,1757880642948,-480.0,0.00021917,2]
[385498335,1757880642958,-480.0,0.00021917,2]
[385498337,1757880642967,-480.0,0.00021917,2]
[385498339,1757880642977,-606.86,0.00021917,2]
[385498342,1757880642987,-662.49,0.00021917,2]
[385498343,1757880642997,-480.0,0.00022191,3]
[385498345,1757880643006,-480.0,0.00022191,3]
[385498348,1757880643016,-606.86,0.00022191,3]
[385498350,1757880643027,-480.0,0.00022191,3]
[385498352,1757880643037,-662.49,0.00022191,3]
[385498354,1757880643046,-1234.79,0.00022465,3]
[385498356,1757880643056,-3494.18,0.00022465,3]
[385498359,1757880643065,-480.0,0.00022465,3]
[385498362,1757880643075,-633.82,0.00022465,3]
[385498365,1757880643084,-1940.82,0.00022465,3]
[385498367,1757880643094,-480.0,0.00022465,3]
[385498370,1757880643103,-480.0,0.00022465,3]
[385498372,1757880643111,-480.0,0.00022465,3]
[385498374,1757880643121,-480.0,0.00022465,3]
[385498376,1757880643130,-567.64,0.00022465,3]
[385498378,1757880643140,-480.0,0.00022465,3]
[385498380,1757880643149,-797.02,0.00022465,3]
[385498382,1757880643159,-576.54,0.00022465,3]
[385498385,1757880643168,-480.0,0.00022465,3]
[385498388,1757880643180,-480.0,0.00022465,3]
[385498390,1757880643192,-992.53,0.00022465,3]
[385498392,1757880643203,-477.57271838,0.00022465,3]
[385498393,1757880643214,-6999.92,0.00022465,3]
[385498394,1757880643226,-1514.07,0.00022465,3]
[385498395,1757880643238,-3658.61,0.00022465,3]
[385498396,1757880643249,-643.14,0.00022465,3]
[385498397,1757880643259,-1625.23,0.00022465,3]
[385498398,1757880643268,-480.0,0.00022465,3]
[385498399,1757880643279,-1365.48,0.00022465,3]
[385498400,1757880643293,-480.0,0.00022465,3]
[385498401,1757880643304,-1130.5,0.00022465,3]
[385498402,1757880643315,-2171.07,0.00022465,3]
[385498403,1757880643327,-1426.53,0.00022465,3]
[385498404,1757880643338,-480.0,0.00022465,3]
[385498405,1757880643349,-507.02,0.00022465,3]
[385498406,1757880643360,-480.0,0.00022465,3]
[385498407,1757880643371,-480.0,0.00022465,3]
[385498408,1757880643381,-480.0,0.00022465,3]
[385498410,1757880643393,-480.0,0.00022465,3]
[385498412,1757880643405,-480.0,0.00022465,3]
[385498415,1757880643416,-480.0,0.00022465,3]
[385498417,1757880643428,-649.58,0.00022465,3]
[385498419,1757880643439,-480.0,0.00022465,3]
[385498421,1757880643450,-480.0,0.00022465,3]
[385498423,1757880643462,-2786.22,0.00022465,3]
[385498425,1757880643473,-480.0,0.00022465,3]
[385498427,1757880643483,-683.03,0.00022465,3]
[385498430,1757880643494,-65.98728162,0.00022465,3]
[385498433,1757880643514,-432.32271838,0.00022465,3]
[385498435,1757880643525,-487.6,0.00022465,3]
[385498437,1757880643536,-576.81,0.00022465,3]
[385498439,1757880643547,-778.35,0.00022465,3]
[385498441,1757880643562,-1239.31,0.00022465,3]
[385498443,1757880643583,-480.0,0.00022465,3]
[385498445,1757880643603,-2079.8,0.00022465,3]
[385498447,1757880643626,-480.0,0.00022465,3]
[385498449,1757880643647,-535.32,0.00022465,3]
[385498452,1757880643671,-1416.85,0.00022465,3]
[385498454,1757880643693,-646.4,0.00022465,3]
[385498456,1757880643717,-357.82528036,0.00022465,3]
[385498458,1757880643739,-480.0,0.00022465,3]
[385498460,1757880643763,-593.08,0.00022465,3]
[385498462,1757880643781,-480.0,0.00022465,3]
[385498465,1757880643793,-480.0,0.00022465,3]
[385498467,1757880643804,-964.68,0.00022465,3]
[385498469,1757880643816,-1210.2,0.00022465,3]
[385498471,1757880643826,-584.73,0.00022465,3]
[385498473,1757880643838,-568.28,0.00022465,3]
[385498476,1757880643849,-601.95,0.00022465,3]
[385498478,1757880643863,-519.75,0.00022465,3]
[385498480,1757880643872,-300.0,0.00022465,2]
[385498482,1757880643882,-480.0,0.00022465,3]
[385498484,1757880643891,-480.0,0.00022465,3]
[385498486,1757880643901,-480.0,0.00022465,3]
[385498488,1757880643911,-480.0,0.00022465,3]
[385498490,1757880643922,-11402.65,0.00022465,3]
[385498492,1757880643933,-480.0,0.00022465,3]
[385498495,1757880643945,-539.71,0.00022465,3]
[385498497,1757880643961,-480.0,0.00022465,3]
[385498499,1757880643973,-678.7,0.00022465,3]
[385498501,1757880643982,-480.0,0.00022465,3]
[385498503,1757880643992,-480.0,0.00022465,3]
[385498505,1757880644003,-606.86,0.00022465,3]
[385498508,1757880644014,-480.0,0.00022465,3]
[385498510,1757880644024,-3000.0,0.0002247,2]
[385498512,1757880644036,-3000.0,0.0002248,2]
[385498514,1757880644047,-3000.0,0.0002249,2]
[385498516,1757880644065,-3000.0,0.000225,2]
[385498518,1757880644075,-3000.0,0.0002251,2]
[385498520,1757880644085,-3000.0,0.0002252,2]
[385498522,1757880644095,-192.51070762,0.0002253,2]
[385498694,1757880645770,-662.49,0.00022465,3]
[385498696,1757880645781,-2807.48929238,0.0002253,2]
[385498698,1757880645792,-3000.0,0.0002254,2]
[385498700,1757880645803,-3000.0,0.0002255,2]
[385498702,1757880645814,-3000.0,0.0002256,2]
[385498704,1757880645824,-3000.0,0.0002257,2]
[385498707,1757880645835,-151.2,0.00022577,2]
[385498709,1757880645845,-3000.0,0.0002258,2]
[385498711,1757880645855,-3000.0,0.0002259,2]
[385498713,1757880645866,-3000.0,0.000226,2]
[385498715,1757880645877,-3000.0,0.0002261,2]
[385498717,1757880645887,-4080.0,0.00022616,2]
[385498719,1757880645898,-3000.0,0.0002262,2]
[385498721,1757880645908,-3000.0,0.0002263,2]
[385498722,1757880645919,-150.0,0.00022631,2]
[385498723,1757880645929,-150.0,0.00022631,2]
[385498724,1757880645939,-150.0,0.00022631,2]
[385498725,1757880645950,-3000.0,0.0002264,2]
[385498726,1757880645960,-3000.0,0.0002265,2]
[385498727,1757880645971,-3000.0,0.0002266,2]
[385498728,1757880645981,-1753.6922449,0.00022662,2]
[385498729,1757880645992,-3000.0,0.0002267,2]
[385498730,1757880646002,-3000.0,0.0002268,2]
[385498731,1757880646012,-3000.0,0.0002269,2]
[385498732,1757880646022,-3000.0,0.000227,2]
[385498733,1757880646032,-185.27185661,0.000227,2]
[385498735,1757880646041,-3000.0,0.0002271,2]
[385498736,1757880646052,-3000.0,0.0002272,2]
[385498738,1757880646061,-1000.0,0.00022721,2]
[385498740,1757880646070,-1000.01876604,0.00022721,2]
[385498742,1757880646080,-3000.0,0.0002273,2]
[385498744,1757880646089,-480.0,0.00022739,3]
[385498746,1757880646098,-480.0,0.00022739,3]
[385498748,1757880646107,-480.0,0.00022739,3]
[385498750,1757880646116,-480.0,0.00022739,3]
[385498752,1757880646126,-480.0,0.00022739,3]
[385498754,1757880646136,-480.0,0.00022739,3]
[385498756,1757880646145,-480.0,0.00022739,3]
[385498758,1757880646155,-480.0,0.00022739,3]
[385498760,1757880646164,-480.0,0.00022739,3]
[385498762,1757880646173,-480.0,0.00022739,3]
[385498764,1757880646183,-480.0,0.00022739,3]
[385498766,1757880646192,-776.79,0.00022739,3]
[385498768,1757880646202,-480.0,0.00022739,3]
[385498770,1757880646211,-480.0,0.00022739,3]
[385498772,1757880646221,-480.0,0.00022739,3]
[385498774,1757880646231,-480.0,0.00022739,3]
[385498776,1757880646240,-574.94,0.00022739,3]
[385498778,1757880646250,-480.0,0.00022739,3]
[385498780,1757880646260,-480.0,0.00022739,3]
[385498782,1757880646269,-866.99,0.00022739,3]
[385498805,1757880646469,-480.0,0.00022739,3]
[385498807,1757880646486,-480.0,0.00022739,3]
[385498810,1757880646498,-480.0,0.00022739,3]
[385498812,1757880646508,-480.0,0.00022739,3]
[385498814,1757880646517,-489.06,0.00022739,3]
[385498816,1757880646526,-480.0,0.00022739,3]
[385498818,1757880646536,-480.0,0.00022739,3]
[385498820,1757880646545,-480.0,0.00022739,3]
[385498822,1757880646555,-488.18,0.00022739,3]
[385498824,1757880646564,-957.76,0.00022739,3]
[385498826,1757880646573,-480.0,0.00022739,3]
[385498828,1757880646583,-480.0,0.00022739,3]
[385498830,1757880646592,-1234.79,0.00022739,3]
[385498832,1757880646601,-3494.18,0.00022739,3]
[385498834,1757880646610,-480.0,0.00022739,3]
[385498836,1757880646619,-633.82,0.00022739,3]
[385498838,1757880646628,-1940.82,0.00022739,3]
[385498840,1757880646637,-480.0,0.00022739,3]
[385498842,1757880646646,-480.0,0.00022739,3]
[385498844,1757880646655,-480.0,0.00022739,3]
[385498846,1757880646664,-480.0,0.00022739,3]
[385498847,1757880646675,-567.64,0.00022739,3]
[385498850,1757880646684,-480.0,0.00022739,3]
[385498852,1757880646695,-797.02,0.00022739,3]
[385498853,1757880646705,-576.54,0.00022739,3]
[385498855,1757880646714,-480.0,0.00022739,3]
[385498857,1757880646728,-480.0,0.00022739,3]
[385498859,1757880646738,-992.53,0.00022739,3]
[385498862,1757880646747,-6999.92,0.00022739,3]
[385498864,1757880646756,-1514.07,0.00022739,3]
[385498866,1757880646765,-3658.61,0.00022739,3]
[385498868,1757880646775,-643.14,0.00022739,3]
[385498870,1757880646784,-1625.23,0.00022739,3]
[385498872,1757880646793,-1365.48,0.00022739,3]
[385498873,1757880646802,-480.0,0.00022739,3]
[385498875,1757880646812,-1130.5,0.00022739,3]
[385498878,1757880646824,-2171.07,0.00022739,3]
[385498879,1757880646835,-1426.53,0.00022739,3]
[385498881,1757880646844,-480.0,0.00022739,3]
[385498883,1757880646855,-507.02,0.00022739,3]
[385498886,1757880646864,-480.0,0.00022739,3]
[385498887,1757880646877,-480.0,0.00022739,3]
[385498890,1757880646889,-480.0,0.00022739,3]
[385498891,1757880646899,-480.0,0.00022739,3]
[385498894,1757880646910,-480.0,0.00022739,3]
[385498896,1757880646920,-649.58,0.00022739,3]
[385498898,1757880646929,-566.97373539,0.00022739,3]
[385498899,1757880646938,-480.0,0.00022739,3]
[385498901,1757880646948,-480.0,0.00022739,3]
[385498903,1757880646957,-2786.22,0.00022739,3]
[385498905,1757880646966,-683.03,0.00022739,3]
[385498907,1757880646975,-498.31,0.00022739,3]
[385498910,1757880646984,-487.6,0.00022739,3]
[385498911,1757880646994,-576.81,0.00022739,3]
[385498914,1757880647003,-778.35,0.00022739,3]
[385498916,1757880647013,-1239.31,0.00022739,3]
[385498918,1757880647023,-480.0,0.00022739,3]
[385498920,1757880647032,-2079.8,0.00022739,3]
[385498922,1757880647041,-480.0,0.00022739,3]
[385498924,1757880647051,-535.32,0.00022739,3]
[385498926,1757880647060,-1416.85,0.00022739,3]
[385498928,1757880647069,-646.4,0.00022739,3]
[385498930,1757880647079,-480.0,0.00022739,3]
[385498931,1757880647088,-593.08,0.00022739,3]
[385498933,1757880647098,-480.0,0.00022739,3]
[385498934,1757880647107,-480.0,0.00022739,3]
[385498936,1757880647116,-964.68,0.00022739,3]
[385498938,1757880647126,-1210.2,0.00022739,3]
[385498940,1757880647135,-584.73,0.00022739,3]
[385498942,1757880647145,-568.28,0.00022739,3]
[385498944,1757880647154,-601.95,0.00022739,3]
[385498946,1757880647163,-519.75,0.00022739,3]
[385498948,1757880647172,-300.0,0.00022739,2]
[385498950,1757880647181,-480.0,0.00022739,3]
[385498952,1757880647191,-480.0,0.00022739,3]
[385498954,1757880647200,-480.0,0.00022739,3]
[385498956,1757880647209,-480.0,0.00022739,3]
[385498958,1757880647218,-11402.65,0.00022739,3]
[385498960,1757880647227,-480.0,0.00022739,3]
[385498962,1757880647237,-539.71,0.00022739,3]
[385498964,1757880647247,-480.0,0.00022739,3]
[385498966,1757880647256,-678.7,0.00022739,3]
[385498968,1757880647265,-178.31,0.00022739,3]
[385498970,1757880647275,-444.16650484,0.00022739,3]
[385498972,1757880647286,-606.86,0.00022739,3]
[385498974,1757880647296,-480.0,0.00022739,3]
[385498976,1757880647305,-662.49,0.00022739,3]
[385498978,1757880647315,-4184.583654,0.0002274,2]
[385498980,1757880647325,-163.55172474,0.00022767,3]
[385498982,1757880647334,-500.0,0.00022773,2]
[385498984,1757880647343,-500.0,0.00022773,2]
[385498986,1757880647353,-500.0,0.00022773,2]
[385498988,1757880647363,-500.0,0.00022773,2]
[385498990,1757880647372,-500.0,0.00022773,2]
[385498992,1757880647381,-501.05278782,0.00022773,2]
[385498994,1757880647391,-500.0,0.00022773,2]
[385498996,1757880647400,-500.0,0.00022773,2]
[385498999,1757880647410,-500.0,0.00022773,2]
[385499000,1757880647420,-500.0,0.00022773,2]
[385499002,1757880647429,-519.63847923,0.00022773,2]
[385499004,1757880647438,-500.0,0.00022773,2]
[385499006,1757880647447,-469.75699858,0.00022773,2]
[385499008,1757880647456,-500.0,0.00022773,2]
[385499010,1757880647465,-500.0,0.00022773,2]
[385499012,1757880647474,-4787.40503069,0.00022796,2]
[385499014,1757880647483,-278250.00138862,0.00022796,2]
[385507699,1757880793151,1671.57747784,0.000199,2]
[385507702,1757880869444,700.0,0.00027397,120]
[385507703,1757880977563,2258.6646018,0.000199,2]
[385507704,1757881164159,1978.77891677,0.000199,2]
[385507705,1757881164184,204.59434162,0.000199,2]
[385507709,1757881351694,2046.52372088,0.000199,2]
[385507710,1757881390084,160.0,0.0002015,2]
[385507713,1757881533081,1978.30626344,0.000199,2]
[385507718,1757881656798,-300.0,0.00021147,2]
[385507719,1757881656827,-1200.0,0.00021147,2]
[385507720,1757881656856,-196.0,0.00021148,2]
[385507721,1757881656883,-182.0,0.00021148,2]
[385507722,1757881656913,-1200.0,0.00021148,2]
[385507723,1757881681802,-2693.99672254,0.00021148,6]
[385507725,1757881691793,-300.0,0.00021147,2]
[385507726,1757881691826,-2093.99672253,0.00021148,6]
[385507727,1757881691871,-5212.01655494,0.00021148,6]
[385507730,1757881725100,1912.35412929,0.000199,2]
[385507731,1757881742071,-687.00670451,0.00021,10]
[385507732,1757881742126,-6713.64246169,0.00021149,2]
[385507763,1757881832086,-300.0,0.00021148,2]
[385507764,1757881832095,-1151.0,0.00021148,2]
[385507766,1757881832105,-3496.95453101,0.00021149,2]
[385507768,1757881832115,-1912.35412915,0.00021149,2]
[385507769,1757881832124,-681.0,0.00021324,2]
[385507772,1757881832134,-681.0,0.00021557,2]
[385507775,1757881832144,-681.0,0.00021655,2]
[385507777,1757881832153,-168.0,0.00021754,2]
[385507779,1757881832162,-220.688909,0.00021817,2]
[385507781,1757881832172,-847.27885267,0.00021865,2]
[385507783,1757881832181,-160.0,0.00021866,2]
[385507785,1757881832191,-168.0,0.00021882,2]
[385507787,1757881832200,-4620.3,0.00021907,10]
[385507789,1757881832210,-300.49685021,0.00021916,2]
[385507791,1757881832219,-600.42434487,0.00021916,2]
[385507793,1757881832228,-500.0,0.00021916,2]
[385507795,1757881832238,-156.8367042,0.00021916,2]
[385507797,1757881832247,-567.60168418,0.00021916,2]
[385507799,1757881832257,-500.0,0.00021916,2]
[385507801,1757881832266,-500.0,0.00021916,2]
[385507803,1757881832276,-500.0,0.00021916,2]
[385507805,1757881832285,-500.0,0.00021916,2]
[385507807,1757881832294,-480.0,0.00021917,2]
[385507809,1757881832303,-536.16,0.00021917,2]
[385507811,1757881832313,-480.0,0.00021917,2]
[385507813,1757881832322,-480.0,0.00021917,2]
[385507815,1757881832332,-480.0,0.00021917,2]
[385507816,1757881832341,-480.0,0.00021917,2]
[385507818,1757881832351,-751.94,0.00021917,2]
[385507820,1757881832360,-482.69,0.00021917,2]
[385507822,1757881832370,-480.0,0.00021917,2]
[385507824,1757881832379,-480.0,0.00021917,2]
[385507826,1757881832388,-480.0,0.00021917,2]
[385507828,1757881832398,-245.0,0.00021917,2]
[385507830,1757881832407,-244.85481629,0.00021917,2]
[385507832,1757881832416,-244.42894391,0.00021917,2]
[385507834,1757881832425,-151.0,0.00021917,2]
[385507836,1757881832434,-151.0,0.00021917,2]
[385507837,1757881832444,-267.41440157,0.00021917,2]
[385507838,1757881832453,-151.0,0.00021917,2]
[385507839,1757881832462,-151.0,0.00021917,2]
[385507840,1757881832472,-480.0,0.00021917,2]
[385507842,1757881832481,-480.0,0.00021917,2]
[385507844,1757881832490,-810.23,0.00021917,2]
[385507846,1757881832499,-480.0,0.00021917,2]
[385507848,1757881832508,-480.0,0.00021917,2]
[385507850,1757881832517,-480.0,0.00021917,2]
[385507851,1757881832527,-506.05,0.00021917,2]
[385507853,1757881832536,-480.0,0.00021917,2]
[385507855,1757881832545,-480.0,0.00021917,2]
[385507857,1757881832555,-480.0,0.00021917,2]
[385507859,1757881832564,-480.0,0.00021917,2]
[385507861,1757881832573,-88.54309901,0.00021917,2]
[385507912,1757881837977,-3850.25,0.00021907,10]
[385507913,1757881837986,-391.45690099,0.00021917,2]
[385507914,1757881837995,-480.0,0.00021917,2]
[385507915,1757881838005,-480.0,0.00021917,2]
[385507916,1757881838014,-480.0,0.00021917,2]
[385507917,1757881838023,-480.0,0.00021917,2]
[385507918,1757881838032,-480.0,0.00021917,2]
[385507919,1757881838042,-480.0,0.00021917,2]
[385507920,1757881838051,-980.85,0.00021917,2]
[385507921,1757881838061,-480.0,0.00021917,2]
[385507922,1757881838070,-480.0,0.00021917,2]
[385507923,1757881838079,-480.0,0.00021917,2]
[385507924,1757881838088,-480.0,0.00021917,2]
[385507926,1757881838097,-480.0,0.00021917,2]
[385507928,1757881838107,-481.57,0.00021917,2]
[385507930,1757881838116,-514.62,0.00021917,2]
[385507932,1757881838126,-507.17,0.00021917,2]
[385507934,1757881838135,-480.0,0.00021917,2]
[385507936,1757881838144,-480.0,0.00021917,2]
[385507937,1757881838154,-480.0,0.00021917,2]
[385507938,1757881838163,-480.0,0.00021917,2]
[385507939,1757881838172,-480.0,0.00021917,2]
[385507941,1757881838181,-1418.5,0.00021917,2]
[385507942,1757881838191,-1150.0,0.00021917,2]
[385507943,1757881838200,-3765.01,0.00021917,2]
[385507944,1757881838209,-151.0,0.00021917,2]
[385507945,1757881838219,-480.0,0.00021917,2]
[385507946,1757881838228,-480.0,0.00021917,2]
[385507947,1757881838237,-6560.0,0.00021917,2]
[385507948,1757881838246,-1174.39,0.00021917,2]
[385507949,1757881838256,-1050.05,0.00021917,2]
[385507950,1757881838265,-480.0,0.00021917,2]
[385507951,1757881838275,-480.0,0.00021917,2]
[385507952,1757881838284,-480.0,0.00021917,2]
[385507953,1757881838294,-3759.44,0.00021917,2]
[385507954,1757881838303,-1947.42,0.00021917,2]
[385507955,1757881838312,-629.55,0.00021917,2]
[385507956,1757881838321,-480.0,0.00021917,2]
[385507957,1757881838330,-480.0,0.00021917,2]
[385507958,1757881838340,-630.77,0.00021917,2]
[385507959,1757881838349,-480.0,0.00021917,2]
[385507960,1757881838358,-480.0,0.00021917,2]
[385507961,1757881838368,-602.26,0.00021917,2]
[385507962,1757881838377,-480.0,0.00021917,2]
[385507963,1757881838386,-1553.69,0.00021917,2]
[385507964,1757881838395,-480.0,0.00021917,2]
[385507965,1757881838405,-480.0,0.00021917,2]
[385507966,1757881838415,-1498.97,0.00021917,2]